[Event "18th Charleroi Open-A 2019"]
[Site "Charleroi"]
[Date "2019.07.31"]
[Round "6.6"]
[White "Dauw, Sterre"]
[Black "Abdullayev, Elshad"]
[Result "1/2-1/2"]
[ECO "B17"]
[WhiteElo "2148"]
[BlackElo "2204"]
[Annotator "NA"]
[PlyCount "120"]
[EventDate "2019.07.22"]
[EventType "swiss"]
[EventCountry "BEL"]
[SourceTitle "playchess.com"]
[Source "ChessBase"]
[SourceQuality "1"]
[TimeControl "40/5400+30:1800+30"]

1. e4 {[%emt 0:00:00]} c6 {[%emt 0:08:40]} 2. d4 {[%emt 0:01:29]} d5 {[%emt 0:00:05]} 3. Nc3 {[%emt 0:00:03]} dxe4 {[%emt 0:00:06]} 4. Nxe4 {[%emt 0:00:05]} Nd7 {[%emt 0:00:05]} 5. Nf3 {[%emt 0:00:04]} Ngf6 {[%emt 0:00:06]} 6. Nxf6+ {[%emt 0:00:11]} Nxf6 {[%emt 0:00:20]} 7. Be2 {[%emt 0:00:07]} Bf5 {[%emt 0:00:22]} 8. O-O {[%emt 0:00:30]} e6 {[%emt 0:00:19]} 9. c4 {[%emt 0:00:43]} Bd6 {[%emt 0:00:09]} 10. Qb3 {[%emt 0:09:56]} Qc7 {[%emt 0:06:06]} 11. c5 {[%emt 0:00:34]} Be7 {[%emt 0:00:15]} 12. Ne5 {[%emt 0:01:02]} Nd5 {[%emt 0:05:32]} 13. Bc4 {[%emt 0:08:56]} Rd8 {[%emt 0:02:31]} 14. Qg3 {[%emt 0:03:02]} g5 {[%emt 0:11:57]} 15. Bd3 {[%emt 0:19:11]} f6 {[%emt 0:06:06]} 16. Bxf5 {[%emt 0:05:39]} exf5 {[%emt 0:00:12]} 17. Nc4 {[%emt 0:02:43]} Qxg3 {[%emt 0:00:34]} 18. fxg3 {[%emt 0:00:07]} Nb4 {[%emt 0:00:12]} 19. Ne3 {[%emt 0:00:11]} Rxd4 {[%emt 0:01:42]} 20. Nxf5 {[%emt 0:00:18]} Rd5 {[%emt 0:00:27]} 21. Nxe7 {[%emt 0:06:46]} Kxe7 {[%emt 0:00:05]} 22. b3 {[%emt 0:00:04]} Nd3 {[%emt 0:03:30]} 23. Ba3 {[%emt 0:02:02]} Kf7 {[%emt 0:01:35]} 24. Rad1 {[%emt 0:02:23]} Re8 {[%emt 0:00:30]} 25. Rd2 {[%emt 0:01:57]} Red8 {[%emt 0:08:00]} 26. b4 {[%emt 0:06:09]} Ne5 {[%emt 0:00:22]} 27. Rxd5 {[%emt 0:04:12]} Rxd5 {[%emt 0:00:05]} 28. Bb2 {[%emt 0:00:04]} Ke6 {[%emt 0:00:09]} 29. Bxe5 {[%emt 0:00:45]} fxe5 {[%emt 0:08:07]} 30. Rf8 {[%emt 0:01:29]} Rd7 {[%emt 0:09:47]} 31. Kf2 {[%emt 0:06:29]} Kd5 {[%emt 0:17:32]} 32. Rg8 {[%emt 0:01:33]} Kc4 {[%emt 0:01:20]} 33. Rxg5 {[%emt 0:00:21]} Kxb4 {[%emt 0:01:37]} 34. Rxe5 {[%emt 0:03:50]} a5 {[%emt 0:03:18]} 35. g4 {[%emt 0:06:02]} a4 {[%emt 0:00:35]} 36. Ke2 {[%emt 0:03:46]} Ka3 {[%emt 0:01:01]} 37. Re4 {[%emt 0:00:56]} b5 {[%emt 0:01:05]} 38. cxb6 {[%emt 0:01:10]} Rb7 {[%emt 0:00:01]} 39. Kd3 {[%emt 0:01:43]} Rxb6 {[%emt 0:00:08]} 40. Re2 {[%emt 0:00:04]} Rb4 {[%emt 0:00:22]} 41. h3 {[%emt 0:06:44]} c5 {[%emt 0:00:22]} 42. Rc2 {[%emt 0:13:07]} Rd4+ {[%emt 0:06:14]} 43. Kc3 {[%emt 0:02:15]} h6 {[%emt 0:01:08]} 44. Rf2 {[%emt 0:03:42]} Re4 {[%emt 0:00:16]} 45. Rf5 {[%emt 0:08:25]} Re2 {[%emt 0:00:21]} 46. Rxc5 {[%emt 0:00:20]} Rxg2 {[%emt 0:00:25]} 47. Rh5 {[%emt 0:00:48]} Kxa2 {[%emt 0:00:09]} 48. Rxh6 {[%emt 0:00:06]} a3 {[%emt 0:00:19]} 49. Kd4 {[%emt 0:01:00]} Rg3 {[%emt 0:03:31]} 50. Ke4 {[%emt 0:00:23]} Kb2 {[%emt 0:00:05]} 51. Ra6 {[%emt 0:01:13]} a2 {[%emt 0:00:25]} 52. Rxa2+ {[%emt 0:00:03]} Kxa2 {[%emt 0:00:04]} 53. Kf5 {[%emt 0:00:07]} Rf3+ {[%emt 0:04:24]} 54. Ke6 {[%emt 0:00:23]} Rxh3 {[%emt 0:02:09]} 55. g5 {[%emt 0:00:18]} Rg3 {[%emt 0:00:17]} 56. Kf6 {[%emt 0:00:06]} Kb3 {[%emt 0:00:06]} 57. g6 {[%emt 0:00:02]} Kc4 {[%emt 0:00:11]} 58. g7 {[%emt 0:00:08]} Kd5 {[%emt 0:00:07]} 59. Kf7 {[%emt 0:00:03]} Rxg7+ {[%emt 0:00:40]} 60. Kxg7 {[%emt 0:00:07]} Ke5 {[%emt 0:00:32]} 1/2-1/2

[Event "18th Charleroi Open-A 2019"]
[Site "Charleroi"]
[Date "2019.07.31"]
[Round "6.7"]
[White "Gijsen, Stief"]
[Black "Anciaux, Marc"]
[Result "1/2-1/2"]
[ECO "C65"]
[WhiteElo "2227"]
[BlackElo "2120"]
[Annotator "NA"]
[PlyCount "66"]
[EventDate "2019.07.22"]
[EventType "swiss"]
[EventCountry "BEL"]
[SourceTitle "playchess.com"]
[Source "ChessBase"]
[SourceQuality "1"]
[TimeControl "40/5400+30:1800+30"]

1. e4 {[%emt 0:00:00]} e5 {[%emt 0:04:05]} 2. Nf3 {[%emt 0:00:00]} Nc6 {[%emt 0:00:09]} 3. Bb5 {[%emt 0:00:00]} Nf6 {[%emt 0:00:11]} 4. d3 {[%emt 0:03:04]} d6 {[%emt 0:01:20]} 5. O-O {[%emt 0:06:19]} Be7 {[%emt 0:01:17]} 6. c3 {[%emt 0:01:29]} O-O {[%emt 0:00:25]} 7. Nbd2 {[%emt 0:01:11]} Bd7 {[%emt 0:00:50]} 8. a4 {[%emt 0:04:09]} a6 {[%emt 0:04:38]} 9. Bc4 {[%emt 0:00:54]} h6 {[%emt 0:00:10]} 10. b4 {[%emt 0:01:26]} Nh7 {[%emt 0:17:23]} 11. Qb3 {[%emt 0:07:09]} Ng5 {[%emt 0:02:21]} 12. Kh1 {[%emt 0:07:09]} Bf6 {[%emt 0:06:52]} 13. Bd5 {[%emt 0:12:53]} Rb8 {[%emt 0:18:07]} 14. Qa2 {[%emt 0:01:07]} Ne7 {[%emt 0:00:21]} 15. Bb3 {[%emt 0:02:32]} Ng6 {[%emt 0:01:49]} 16. Nxg5 {[%emt 0:02:33]} hxg5 {[%emt 0:02:44]} 17. Nc4 {[%emt 0:04:14]} Nf4 {[%emt 0:01:09]} 18. Bxf4 {[%emt 0:00:28]} gxf4 {[%emt 0:00:04]} 19. Rad1 {[%emt 0:07:55]} Qe7 {[%emt 0:04:32]} 20. Rfe1 {[%emt 0:02:19]} g6 {[%emt 0:01:47]} 21. d4 {[%emt 0:01:42]} Kg7 {[%emt 0:04:27]} 22. dxe5 {[%emt 0:00:08]} Bxe5 {[%emt 0:04:29]} 23. Nxe5 {[%emt 0:03:50]} dxe5 {[%emt 0:01:13]} 24. Rd3 {[%emt 0:02:38]} Rfd8 {[%emt 0:02:39]} 25. Red1 {[%emt 0:04:29]} Be8 {[%emt 0:02:35]} 26. Qd2 {[%emt 0:01:30]} Rxd3 {[%emt 0:00:03]} 27. Qxd3 {[%emt 0:00:04]} Bc6 {[%emt 0:00:40]} 28. a5 {[%emt 0:05:44]} Rh8 {[%emt 0:00:42]} 29. Kg1 {[%emt 0:00:57]} g5 {[%emt 0:02:12]} 30. Bd5 {[%emt 0:03:14]} Rh6 {[%emt 0:02:30]} 31. Qf3 {[%emt 0:02:55]} Bxd5 {[%emt 0:01:22]} 32. Rxd5 {[%emt 0:00:23]} c6 {[%emt 0:00:23]} 33. Rd1 {[%emt 0:00:42]} Rd6 {[%emt 0:02:30]} 1/2-1/2

[Event "18th Charleroi Open-A 2019"]
[Site "Charleroi"]
[Date "2019.07.31"]
[Round "6.8"]
[White "Duhayon, Yves"]
[Black "Klinova, Masha"]
[Result "0-1"]
[ECO "A41"]
[WhiteElo "2132"]
[BlackElo "2269"]
[Annotator "NA"]
[PlyCount "90"]
[EventDate "2019.07.22"]
[EventType "swiss"]
[EventCountry "BEL"]
[SourceTitle "playchess.com"]
[Source "ChessBase"]
[SourceQuality "1"]
[TimeControl "40/5400+30:1800+30"]

1. d4 {[%emt 0:00:00]} d6 {[%emt 0:00:00]} 2. c4 {[%emt 0:00:08]} e5 {[%emt 0:00:00]} 3. d5 {[%emt 0:00:28]} f5 {[%emt 0:00:00]} 4. e4 {[%emt 0:00:34]} Nf6 {[%emt 0:00:01]} 5. exf5 {[%emt 0:00:52]} Bxf5 {[%emt 0:00:21]} 6. Nc3 {[%emt 0:00:06]} Be7 {[%emt 0:02:06]} 7. Nge2 {[%emt 0:00:24]} O-O {[%emt 0:02:59]} 8. Ng3 {[%emt 0:00:10]} Bd7 {[%emt 0:04:46]} 9. Bd3 {[%emt 0:02:49]} Na6 {[%emt 0:00:09]} 10. O-O {[%emt 0:02:49]} Nc5 {[%emt 0:00:11]} 11. Bc2 {[%emt 0:03:28]} a5 {[%emt 0:04:05]} 12. Be3 {[%emt 0:02:09]} Ng4 {[%emt 0:10:29]} 13. Bxc5 {[%emt 0:00:07]} dxc5 {[%emt 0:00:04]} 14. Nce4 {[%emt 0:09:24]} Bd6 {[%emt 0:03:09]} 15. Qd2 {[%emt 0:10:29]} Rf4 {[%emt 0:08:10]} 16. Ne2 {[%emt 0:03:23]} Nxh2 {[%emt 0:11:31]} 17. Nxf4 {[%emt 0:20:46]} Nxf1 {[%emt 0:00:55]} 18. Qd3 {[%emt 0:00:20]} exf4 {[%emt 0:10:44]} 19. Nxd6 {[%emt 0:03:56]} Qh4 {[%emt 0:00:39]} 20. Qxh7+ {[%emt 0:00:18]} Qxh7 {[%emt 0:00:37]} 21. Bxh7+ {[%emt 0:00:07]} Kxh7 {[%emt 0:00:24]} 22. Ne4 {[%emt 0:00:06]} Bf5 {[%emt 0:03:49]} 23. Ng5+ {[%emt 0:01:18]} Kh6 {[%emt 0:01:29]} 24. Nf3 {[%emt 0:02:07]} Ne3 {[%emt 0:04:32]} 25. fxe3 {[%emt 0:00:07]} fxe3 {[%emt 0:00:03]} 26. Ne1 {[%emt 0:10:01]} Kg5 {[%emt 0:02:26]} 27. Rc1 {[%emt 0:01:23]} Re8 {[%emt 0:01:22]} 28. Kf1 {[%emt 0:06:58]} Kf4 {[%emt 0:00:58]} 29. Rc3 {[%emt 0:02:45]} b6 {[%emt 0:01:13]} 30. b3 {[%emt 0:01:16]} g5 {[%emt 0:04:00]} 31. Ke2 {[%emt 0:07:17]} Bg4+ {[%emt 0:03:29]} 32. Kf1 {[%emt 0:00:13]} Bf5 {[%emt 0:09:52]} 33. Ke2 {[%emt 0:03:26]} g4 {[%emt 0:01:01]} 34. Nd3+ {[%emt 0:04:54]} Ke4 {[%emt 0:05:21]} 35. Ne1 {[%emt 0:00:56]} Kd4 {[%emt 0:00:40]} 36. Rc1 {[%emt 0:00:05]} Ke4 {[%emt 0:00:57]} 37. Rd1 {[%emt 0:00:26]} g3 {[%emt 0:00:48]} 38. d6 {[%emt 0:01:06]} Bg4+ {[%emt 0:01:04]} 39. Nf3 {[%emt 0:00:03]} cxd6 {[%emt 0:00:15]} 40. Rxd6 {[%emt 0:00:11]} Rg8 {[%emt 0:00:56]} 41. Rh6 {[%emt 0:32:30]} Bxf3+ {[%emt 0:31:26]} 42. gxf3+ {[%emt 0:00:01]} Kd4 {[%emt 0:01:19]} 43. Rh1 {[%emt 0:00:39]} g2 {[%emt 0:00:31]} 44. Rg1 {[%emt 0:00:01]} Rg3 {[%emt 0:01:03]} 45. Rd1+ {[%emt 0:00:00]} Ke5 {[%emt 0:00:00]} 0-1

[Event "18th Charleroi Open-A 2019"]
[Site "Charleroi"]
[Date "2019.07.31"]
[Round "6.9"]
[White "Roger, Mehdi"]
[Black "Faybish, Nimrod"]
[Result "1/2-1/2"]
[ECO "B33"]
[WhiteElo "2125"]
[BlackElo "2220"]
[Annotator "NA"]
[PlyCount "72"]
[EventDate "2019.07.22"]
[EventType "swiss"]
[EventCountry "BEL"]
[SourceTitle "playchess.com"]
[Source "ChessBase"]
[SourceQuality "1"]
[TimeControl "40/5400+30:1800+30"]

1. e4 {[%emt 1:30:30]} c5 {[%emt 1:30:30]} 2. Nf3 {[%emt 0:00:30]} Nc6 {[%emt 0:00:30]} 3. d4 {[%emt 0:00:30]} cxd4 {[%emt 0:00:30]} 4. Nxd4 {[%emt 0:00:30]} Nf6 {[%emt 0:00:30]} 5. Nc3 {[%emt 0:00:30]} e5 {[%emt 0:00:30]} 6. Ndb5 {[%emt 0:00:30]} d6 {[%emt 0:00:30]} 7. Bg5 {[%emt 0:00:30]} a6 {[%emt 0:00:30]} 8. Na3 {[%emt 0:00:30]} b5 {[%emt 0:00:30]} 9. Nd5 {[%emt 0:00:30]} Be7 {[%emt 0:00:30]} 10. Bxf6 {[%emt 0:00:30]} Bxf6 {[%emt 0:00:30]} 11. c4 {[%emt 0:00:30]} b4 {[%emt 0:00:30]} 12. Nc2 {[%emt 0:00:30]} a5 {[%emt 0:00:30]} 13. g3 {[%emt 0:00:30]} O-O {[%emt 0:00:30]} 14. Bg2 {[%emt 0:00:30]} Bg5 {[%emt 0:00:30]} 15. O-O {[%emt 0:00:30]} Be6 {[%emt 0:00:30]} 16. Qd3 {[%emt 0:00:30]} Qb8 {[%emt 0:00:30]} 17. h4 {[%emt 0:00:30]} Bh6 {[%emt 0:00:30]} 18. Rad1 {[%emt 0:00:30]} Ra7 {[%emt 0:00:30]} 19. Nde3 {[%emt 0:00:30]} Bxe3 {[%emt 0:00:30]} 20. Nxe3 Nd4 {[%emt 0:00:30]} 21. b3 {[%emt 0:01:00]} a4 {[%emt 0:00:30]} 22. Nc2 {[%emt 0:00:30]} Nxc2 23. Qxc2 Qb6 24. Qd3 axb3 25. axb3 Ra3 26. Rd2 {[%emt 0:02:00]} Rc8 {[%emt 0:02:30]} 27. Rc1 {[%emt 0:00:30]} Rc6 {[%emt 0:00:30]} 28. Kh2 {[%emt 0:00:30]} Qc5 {[%emt 0:00:30]} 29. Bh3 {[%emt 0:00:30]} Bxh3 {[%emt 0:00:30]} 30. Kxh3 {[%emt 0:00:30]} Rca6 {[%emt 0:00:30]} 31. Rcd1 {[%emt 0:00:30]} h6 {[%emt 0:00:30]} 32. Kg2 {[%emt 0:00:30]} Qc6 {[%emt 0:00:30]} 33. Qf3 {[%emt 0:00:30]} Qc7 {[%emt 0:00:30]} 34. Rd5 {[%emt 0:00:30]} Rc6 {[%emt 0:00:30]} 35. Rb5 {[%emt 0:00:30]} Rca6 {[%emt 0:00:30]} 36. Rbd5 R3a5 {[%emt 0:00:30]} 1/2-1/2

[Event "18th Charleroi Open-A 2019"]
[Site "Charleroi"]
[Date "2019.07.31"]
[Round "6.10"]
[White "Verheyen, Olivier"]
[Black "Lacroix, Bruno"]
[Result "1-0"]
[ECO "B90"]
[WhiteElo "2200"]
[BlackElo "2152"]
[Annotator "NA"]
[PlyCount "75"]
[EventDate "2019.07.22"]
[EventType "swiss"]
[EventCountry "BEL"]
[SourceTitle "playchess.com"]
[Source "ChessBase"]
[SourceQuality "1"]
[TimeControl "40/5400+30:1800+30"]

1. e4 {[%emt 0:00:00]} c5 {[%emt 0:00:00]} 2. Nf3 {[%emt 0:00:00]} d6 {[%emt 0:00:00]} 3. d4 {[%emt 0:00:00]} cxd4 {[%emt 0:00:00]} 4. Nxd4 {[%emt 0:00:00]} Nf6 {[%emt 0:00:00]} 5. Nc3 {[%emt 0:00:00]} a6 {[%emt 0:00:00]} 6. f3 {[%emt 0:00:39]} e5 {[%emt 0:00:19]} 7. Nb3 {[%emt 0:00:04]} Be6 {[%emt 0:00:11]} 8. Be3 {[%emt 0:00:06]} h5 {[%emt 0:00:08]} 9. Nd5 {[%emt 0:00:21]} Nxd5 {[%emt 0:10:38]} 10. exd5 {[%emt 0:00:18]} Bf5 {[%emt 0:00:03]} 11. Bd3 {[%emt 0:00:17]} Bxd3 {[%emt 0:00:06]} 12. Qxd3 {[%emt 0:00:04]} Be7 {[%emt 0:00:08]} 13. c4 {[%emt 0:10:18]} Nd7 {[%emt 0:01:40]} 14. Qd2 {[%emt 0:00:55]} f5 {[%emt 0:09:42]} 15. Na5 {[%emt 0:04:13]} f4 {[%emt 0:01:03]} 16. Bf2 {[%emt 0:00:17]} Bh4 {[%emt 0:01:36]} 17. O-O {[%emt 0:03:18]} Bxf2+ {[%emt 0:00:12]} 18. Rxf2 {[%emt 0:00:05]} Rb8 {[%emt 0:00:10]} 19. b4 {[%emt 0:00:41]} O-O {[%emt 0:03:52]} 20. Rc1 {[%emt 0:01:27]} Nf6 {[%emt 0:03:36]} 21. Rff1 {[%emt 0:08:12]} Qd7 {[%emt 0:14:11]} 22. Rfd1 {[%emt 0:15:02]} g5 {[%emt 0:23:46]} 23. c5 {[%emt 0:03:30]} e4 {[%emt 0:00:42]} 24. c6 {[%emt 0:01:26]} bxc6 {[%emt 0:03:18]} 25. dxc6 {[%emt 0:00:27]} Qa7+ {[%emt 0:00:50]} 26. Qd4 {[%emt 0:03:19]} Qxd4+ {[%emt 0:00:26]} 27. Rxd4 {[%emt 0:00:01]} d5 {[%emt 0:03:53]} 28. a4 {[%emt 0:04:58]} exf3 {[%emt 0:06:55]} 29. gxf3 {[%emt 0:05:42]} Rf7 {[%emt 0:03:18]} 30. Nb7 {[%emt 0:06:07]} Rc7 {[%emt 0:01:29]} 31. Kf2 {[%emt 0:02:14]} Kf7 {[%emt 0:03:56]} 32. b5 {[%emt 0:02:23]} axb5 {[%emt 0:00:02]} 33. axb5 {[%emt 0:04:06]} Ke7 {[%emt 0:03:32]} 34. b6 {[%emt 0:02:48]} Rbxb7 {[%emt 0:00:31]} 35. cxb7 {[%emt 0:01:49]} Rxb7 {[%emt 0:00:03]} 36. Rc6 {[%emt 0:00:43]} h4 {[%emt 0:02:42]} 37. Ra4 {[%emt 0:00:29]} Ne8 {[%emt 0:01:23]} 38. Ra7 {[%emt 0:00:39]} 1-0

[Event "18th Charleroi Open-A 2019"]
[Site "Charleroi"]
[Date "2019.07.31"]
[Round "6.11"]
[White "Huynh, Laurent"]
[Black "Hoffmeister, Frank"]
[Result "0-1"]
[ECO "B12"]
[WhiteElo "2111"]
[BlackElo "2187"]
[Annotator "NA"]
[PlyCount "68"]
[EventDate "2019.07.22"]
[EventType "swiss"]
[EventCountry "BEL"]
[SourceTitle "playchess.com"]
[Source "ChessBase"]
[SourceQuality "1"]
[TimeControl "40/5400+30:1800+30"]

1. e4 {[%emt 0:00:00]} c6 {[%emt 0:00:00]} 2. d4 {[%emt 0:00:00]} d5 {[%emt 0:00:00]} 3. e5 {[%emt 0:00:00]} Bf5 {[%emt 0:00:00]} 4. Bd3 {[%emt 0:00:10]} Bxd3 {[%emt 0:00:23]} 5. Qxd3 {[%emt 0:00:07]} Qa5+ {[%emt 0:00:06]} 6. c3 {[%emt 0:00:06]} Qa6 {[%emt 0:00:05]} 7. Qd1 {[%emt 0:01:41]} e6 {[%emt 0:00:36]} 8. Be3 {[%emt 0:00:23]} Ne7 {[%emt 0:05:07]} 9. Nd2 {[%emt 0:02:49]} Nf5 {[%emt 0:01:31]} 10. Ndf3 {[%emt 0:00:34]} c5 {[%emt 0:04:56]} 11. Ne2 {[%emt 0:02:53]} Nc6 {[%emt 0:00:25]} 12. O-O {[%emt 0:00:39]} Be7 {[%emt 0:03:37]} 13. Qd2 {[%emt 0:01:33]} cxd4 {[%emt 0:07:09]} 14. Bxd4 {[%emt 0:00:31]} O-O {[%emt 0:01:19]} 15. Rfe1 {[%emt 0:04:41]} Rac8 {[%emt 0:11:29]} 16. a3 {[%emt 0:05:24]} Na5 {[%emt 0:04:01]} 17. Qc2 {[%emt 0:06:07]} Nc4 {[%emt 0:17:09]} 18. g4 {[%emt 0:03:25]} Nxd4 {[%emt 0:01:22]} 19. Nexd4 {[%emt 0:00:09]} Rfe8 {[%emt 0:02:57]} 20. Re2 {[%emt 0:01:32]} b5 {[%emt 0:04:24]} 21. h4 {[%emt 0:03:00]} b4 {[%emt 0:04:44]} 22. Qd3 {[%emt 0:00:52]} b3 {[%emt 0:12:13]} 23. Kg2 {[%emt 0:02:44]} Qb6 {[%emt 0:02:19]} 24. Ng5 {[%emt 0:00:50]} g6 {[%emt 0:02:35]} 25. Rh1 {[%emt 0:03:40]} Qc7 {[%emt 0:06:25]} 26. f4 {[%emt 0:03:38]} Bd8 {[%emt 0:05:13]} 27. Ngf3 {[%emt 0:04:12]} a5 {[%emt 0:00:37]} 28. h5 {[%emt 0:05:03]} a4 {[%emt 0:00:22]} 29. hxg6 {[%emt 0:03:02]} fxg6 {[%emt 0:00:14]} 30. f5 {[%emt 0:00:12]} exf5 {[%emt 0:02:01]} 31. gxf5 {[%emt 0:01:36]} Nxb2 {[%emt 0:00:54]} 32. Qb5 {[%emt 0:00:26]} Rf8 {[%emt 0:00:51]} 33. Qxd5+ {[%emt 0:01:29]} Qf7 {[%emt 0:00:21]} 34. Rxb2 {[%emt 0:02:42]} Qxd5 {[%emt 0:00:05]} 0-1

[Event "18th Charleroi Open-A 2019"]
[Site "Charleroi"]
[Date "2019.07.31"]
[Round "6.12"]
[White "Ghyselen, Wouter"]
[Black "Van Malder, Dries"]
[Result "1-0"]
[ECO "A45"]
[WhiteElo "2078"]
[BlackElo "2178"]
[Annotator "NA"]
[PlyCount "114"]
[EventDate "2019.07.22"]
[EventType "swiss"]
[EventCountry "BEL"]
[SourceTitle "playchess.com"]
[Source "ChessBase"]
[SourceQuality "1"]
[TimeControl "40/5400+30:1800+30"]

1. d4 {[%emt 0:00:00]} Nf6 {[%emt 0:00:00]} 2. Bg5 {[%emt 0:00:03]} Ne4 {[%emt 0:00:00]} 3. Bf4 {[%emt 0:00:18]} d5 {[%emt 0:00:00]} 4. e3 {[%emt 0:00:07]} c5 {[%emt 0:00:00]} 5. Bd3 {[%emt 0:00:19]} Nf6 {[%emt 0:00:05]} 6. c3 {[%emt 0:00:49]} Nc6 {[%emt 0:00:08]} 7. Nd2 {[%emt 0:00:59]} Bg4 {[%emt 0:02:47]} 8. Ngf3 {[%emt 0:00:50]} e6 {[%emt 0:00:52]} 9. Qa4 {[%emt 0:01:01]} Nd7 {[%emt 0:10:34]} 10. Ne5 {[%emt 0:25:36]} Ndxe5 {[%emt 0:04:08]} 11. Bxe5 {[%emt 0:01:17]} Bh5 {[%emt 0:08:43]} 12. Bb5 {[%emt 0:16:14]} Qc8 {[%emt 0:09:00]} 13. dxc5 {[%emt 0:05:05]} f6 {[%emt 0:02:42]} 14. Bd6 {[%emt 0:01:03]} Bxd6 {[%emt 0:00:19]} 15. cxd6 {[%emt 0:00:03]} Qd7 {[%emt 0:05:33]} 16. c4 {[%emt 0:06:59]} Qxd6 {[%emt 0:04:15]} 17. cxd5 {[%emt 0:08:31]} Qxd5 {[%emt 0:02:50]} 18. e4 {[%emt 0:00:23]} Qd7 {[%emt 0:03:50]} 19. Nb3 {[%emt 0:04:10]} O-O {[%emt 0:09:35]} 20. O-O {[%emt 0:01:03]} a6 {[%emt 0:07:08]} 21. Bxc6 {[%emt 0:01:49]} Qxc6 {[%emt 0:00:08]} 22. Qxc6 {[%emt 0:00:08]} bxc6 {[%emt 0:00:05]} 23. Rfc1 {[%emt 0:03:02]} Rfd8 {[%emt 0:02:32]} 24. Rxc6 {[%emt 0:01:08]} e5 {[%emt 0:00:59]} 25. Kf1 {[%emt 0:11:14]} a5 {[%emt 0:04:48]} 26. Ke1 {[%emt 0:00:59]} a4 {[%emt 0:02:45]} 27. Nd2 {[%emt 0:00:18]} Rab8 {[%emt 0:01:14]} 28. Rc2 {[%emt 0:00:35]} Rd4 {[%emt 0:01:43]} 29. Rac1 {[%emt 0:03:36]} Rdb4 {[%emt 0:03:30]} 30. Rc8+ {[%emt 0:01:07]} Rxc8 {[%emt 0:02:03]} 31. Rxc8+ {[%emt 0:00:03]} Kf7 {[%emt 0:00:08]} 32. Nc4 {[%emt 0:02:48]} Ke7 {[%emt 0:01:10]} 33. Kd2 {[%emt 0:00:32]} Bf7 {[%emt 0:01:09]} 34. Kc3 {[%emt 0:00:23]} Rb7 {[%emt 0:01:10]} 35. f3 {[%emt 0:03:44]} g6 {[%emt 0:00:54]} 36. Rc5 {[%emt 0:00:21]} h5 {[%emt 0:00:31]} 37. g3 {[%emt 0:00:19]} g5 {[%emt 0:00:39]} 38. b3 {[%emt 0:01:24]} axb3 {[%emt 0:00:05]} 39. axb3 {[%emt 0:00:02]} g4 {[%emt 0:01:08]} 40. fxg4 {[%emt 0:00:58]} hxg4 {[%emt 0:00:09]} 41. b4 {[%emt 0:01:02]} Be8 {[%emt 0:02:18]} 42. Ne3 {[%emt 0:02:37]} Bd7 {[%emt 0:02:04]} 43. Nd5+ {[%emt 0:02:00]} Ke6 {[%emt 0:37:49]} 44. b5 {[%emt 0:20:08]} f5 {[%emt 0:00:00]} 45. Kb4 {[%emt 0:04:04]} fxe4 {[%emt 0:00:00]} 46. Ne3 {[%emt 0:00:05]} Kd6 {[%emt 0:00:00]} 47. Nc4+ {[%emt 0:00:11]} Ke6 {[%emt 0:02:00]} 48. b6 {[%emt 0:02:06]} Rb8 {[%emt 0:00:00]} 49. Rxe5+ {[%emt 0:00:36]} Kf6 {[%emt 0:00:00]} 50. Rxe4 {[%emt 0:00:16]} Rh8 {[%emt 0:00:00]} 51. Re2 {[%emt 0:00:50]} Be6 {[%emt 0:00:00]} 52. Na5 {[%emt 0:00:36]} Rb8 {[%emt 0:00:00]} 53. Kc5 {[%emt 0:00:53]} Bd7 {[%emt 0:00:00]} 54. b7 {[%emt 0:00:24]} Bf5 {[%emt 0:00:00]} 55. Kb6 {[%emt 0:00:22]} Bd3 {[%emt 0:00:00]} 56. Rf2+ {[%emt 0:00:35]} Ke5 {[%emt 0:00:00]} 57. Nc6+ {[%emt 0:00:05]} Kd5 {[%emt 0:00:00]} 1-0

[Event "18th Charleroi Open-A 2019"]
[Site "Charleroi"]
[Date "2019.07.31"]
[Round "6.13"]
[White "Van Doren, Bas"]
[Black "Manafov, Vugar"]
[Result "1-0"]
[ECO "B03"]
[WhiteElo "1976"]
[BlackElo "2175"]
[Annotator "NA"]
[PlyCount "69"]
[EventDate "2019.07.22"]
[EventType "swiss"]
[EventCountry "BEL"]
[SourceTitle "playchess.com"]
[Source "ChessBase"]
[SourceQuality "1"]
[TimeControl "40/5400+30:1800+30"]

1. e4 {[%emt 0:00:00]} Nf6 {[%emt 0:05:24]} 2. e5 {[%emt 0:00:00]} Nd5 {[%emt 0:00:02]} 3. d4 {[%emt 0:00:00]} d6 {[%emt 0:00:03]} 4. c4 {[%emt 0:00:00]} Nb6 {[%emt 0:00:02]} 5. exd6 {[%emt 0:00:00]} cxd6 {[%emt 0:00:02]} 6. Nc3 {[%emt 0:00:08]} g6 {[%emt 0:00:03]} 7. Be3 {[%emt 0:00:09]} Bg7 {[%emt 0:00:04]} 8. Rc1 {[%emt 0:00:07]} O-O {[%emt 0:00:03]} 9. b3 {[%emt 0:00:09]} Bf5 {[%emt 0:00:04]} 10. h3 {[%emt 0:00:23]} d5 {[%emt 0:01:26]} 11. c5 {[%emt 0:00:06]} Nc8 {[%emt 0:00:04]} 12. g4 {[%emt 0:00:07]} Bd7 {[%emt 0:00:04]} 13. Bg2 {[%emt 0:00:15]} e6 {[%emt 0:00:44]} 14. Nge2 {[%emt 0:00:23]} Nc6 {[%emt 0:00:18]} 15. Rb1 {[%emt 0:00:18]} b6 {[%emt 0:15:23]} 16. b4 {[%emt 0:00:19]} bxc5 {[%emt 0:00:20]} 17. bxc5 {[%emt 0:07:02]} f5 {[%emt 0:15:52]} 18. O-O {[%emt 0:02:15]} fxg4 {[%emt 0:01:13]} 19. hxg4 {[%emt 0:00:06]} Qh4 {[%emt 0:00:13]} 20. f3 {[%emt 0:01:57]} N8e7 {[%emt 0:01:15]} 21. Rb7 {[%emt 0:06:40]} Rad8 {[%emt 0:10:06]} 22. Qd2 {[%emt 0:07:39]} h6 {[%emt 0:00:44]} 23. Nb5 {[%emt 0:16:29]} e5 {[%emt 0:11:32]} 24. Nd6 {[%emt 0:15:14]} exd4 {[%emt 0:04:50]} 25. Nxd4 {[%emt 0:01:45]} Be5 {[%emt 0:01:32]} 26. f4 {[%emt 0:02:39]} Bxd4 {[%emt 0:02:01]} 27. Bxd4 {[%emt 0:00:15]} Qxg4 {[%emt 0:01:12]} 28. Ba1 {[%emt 0:11:50]} d4 {[%emt 0:06:31]} 29. f5 {[%emt 0:08:36]} Bxf5 {[%emt 0:07:22]} 30. Rxe7 {[%emt 0:02:29]} Nxe7 {[%emt 0:00:18]} 31. Rf4 {[%emt 0:00:05]} Qg3 {[%emt 0:08:25]} 32. Qxd4 {[%emt 0:00:53]} Rf6 {[%emt 0:00:25]} 33. Qxf6 {[%emt 0:01:26]} Qe3+ {[%emt 0:00:16]} 34. Kh1 {[%emt 0:00:26]} Qe1+ {[%emt 0:00:30]} 35. Rf1 {[%emt 0:00:05]} 1-0